[Event "Early-Titled-Tuesday-Blitz-February-13-2024"]
[Site "Chess.com"]
[Date "2024.02.13"]
[Round "5"]
[White "Preobrazhenska_D2011"]
[Black "marsofsilva"]
[Result "1/2-1/2"]
[WhiteElo "2346"]
[BlackElo "2105"]
[TimeControl "180+1"]
[EndTime "8:59:05 PST"]
[Termination "Game drawn by repetition"]

1. e4 {[%clk 0:02:57.5]} 1... c5 {[%clk 0:02:59.8]} 2. Nf3 {[%clk 0:02:57.9]}
2... Nc6 {[%clk 0:03:00]} 3. Bb5 {[%clk 0:02:57]} 3... Nf6 {[%clk 0:02:59.8]} 4.
Bxc6 {[%clk 0:02:55.2]} 4... dxc6 {[%clk 0:02:59.5]} 5. d3 {[%clk 0:02:53.1]}
5... g6 {[%clk 0:02:56.2]} 6. O-O {[%clk 0:02:42.1]} 6... Bg7 {[%clk 0:02:55.4]}
7. Re1 {[%clk 0:02:32]} 7... O-O {[%clk 0:02:52.8]} 8. h3 {[%clk 0:02:29]} 8...
b6 {[%clk 0:02:42.5]} 9. a4 {[%clk 0:02:27.2]} 9... a5 {[%clk 0:02:41.4]} 10. e5
{[%clk 0:02:17.2]} 10... Nd5 {[%clk 0:02:40.9]} 11. Nbd2 {[%clk 0:02:16.6]}
11... Nc7 {[%clk 0:02:35]} 12. Ne4 {[%clk 0:02:13.2]} 12... Ne6 {[%clk
0:02:33.8]} 13. Be3 {[%clk 0:01:57.2]} 13... Nd4 {[%clk 0:02:27.7]} 14. Nxd4
{[%clk 0:01:15]} 14... cxd4 {[%clk 0:02:26.5]} 15. Bf4 {[%clk 0:01:15.5]} 15...
Bb7 {[%clk 0:02:16.3]} 16. Qf3 {[%clk 0:01:11.3]} 16... c5 {[%clk 0:02:14.2]}
17. Nf6+ {[%clk 0:01:02.1]} 17... exf6 {[%clk 0:02:09.4]} 18. Qxb7 {[%clk
0:01:02.1]} 18... Rb8 {[%clk 0:02:04.3]} 19. Qc6 {[%clk 0:00:56.1]} 19... fxe5
{[%clk 0:01:54.2]} 20. Bxe5 {[%clk 0:00:57]} 20... Bxe5 {[%clk 0:01:51.8]} 21.
Rxe5 {[%clk 0:00:57.9]} 21... Qc8 {[%clk 0:01:42]} 22. Qf6 {[%clk 0:00:52.6]}
22... Re8 {[%clk 0:01:32.6]} 23. Rae1 {[%clk 0:00:45.1]} 23... Qd7 {[%clk
0:01:20.7]} 24. Re7 {[%clk 0:00:30.8]} 24... Rxe7 {[%clk 0:01:18.2]} 25. Rxe7
{[%clk 0:00:31.7]} 25... Qd5 {[%clk 0:01:18.4]} 26. b3 {[%clk 0:00:23.7]} 26...
Rf8 {[%clk 0:01:00.7]} 27. Qxb6 {[%clk 0:00:22.4]} 27... Qg5 {[%clk 0:00:58]}
28. Rc7 {[%clk 0:00:09.9]} 28... Qc1+ {[%clk 0:00:56.9]} 29. Kh2 {[%clk
0:00:10.5]} 29... Qf4+ {[%clk 0:00:53.3]} 30. Kg1 {[%clk 0:00:08.2]} 30... Qc1+
{[%clk 0:00:53.1]} 31. Kh2 {[%clk 0:00:08.7]} 31... Qf4+ {[%clk 0:00:53.5]} 32.
Kg1 {[%clk 0:00:07.2]} 32... Qc1+ {[%clk 0:00:53.7]} 1/2-1/2

[Event "Early-Titled-Tuesday-Blitz-February-13-2024"]
[Site "Chess.com"]
[Date "2024.02.13"]
[Round "5"]
[White "Korchmar_Vasiliy"]
[Black "thesupera12"]
[Result "1-0"]
[WhiteElo "2732"]
[BlackElo "2519"]
[TimeControl "180+1"]
[EndTime "8:59:06 PST"]
[Termination "Korchmar_Vasiliy won by resignation"]

1. e4 {[%clk 0:03:00.9]} 1... d5 {[%clk 0:02:53.8]} 2. exd5 {[%clk 0:03:00.9]}
2... Qxd5 {[%clk 0:02:54.7]} 3. Nc3 {[%clk 0:03:01.3]} 3... Qa5 {[%clk
0:02:55.5]} 4. d4 {[%clk 0:03:01.8]} 4... Nf6 {[%clk 0:02:56]} 5. Nf3 {[%clk
0:02:58.4]} 5... Bg4 {[%clk 0:02:56.5]} 6. h3 {[%clk 0:02:58.3]} 6... Bh5 {[%clk
0:02:56.3]} 7. g4 {[%clk 0:02:55.9]} 7... Bg6 {[%clk 0:02:56.5]} 8. Ne5 {[%clk
0:02:56]} 8... c6 {[%clk 0:02:57]} 9. h4 {[%clk 0:02:48]} 9... Nbd7 {[%clk
0:02:55.4]} 10. Nc4 {[%clk 0:02:47.1]} 10... Qc7 {[%clk 0:02:52.5]} 11. h5
{[%clk 0:02:14.6]} 11... Be4 {[%clk 0:02:49.4]} 12. Nxe4 {[%clk 0:02:15]} 12...
Nxe4 {[%clk 0:02:49]} 13. Bg2 {[%clk 0:02:15.6]} 13... Nd6 {[%clk 0:02:47.6]}
14. Bf4 {[%clk 0:02:12.2]} 14... O-O-O {[%clk 0:02:43.2]} 15. b4 {[%clk
0:02:04.9]} 15... Nb6 {[%clk 0:02:39.5]} 16. Na5 {[%clk 0:02:01.2]} 16... e5
{[%clk 0:02:23]} 17. Bxe5 {[%clk 0:01:57.7]} 17... f6 {[%clk 0:02:19.2]} 18. Bg3
{[%clk 0:01:56.1]} 18... Re8+ {[%clk 0:02:17.6]} 19. Kf1 {[%clk 0:01:56.6]}
19... Qe7 {[%clk 0:02:10.8]} 20. Qf3 {[%clk 0:01:43]} 20... Ne4 {[%clk 0:02:08]}
21. Qf5+ {[%clk 0:01:40.8]} 21... Nd7 {[%clk 0:02:03.2]} 22. Bh2 {[%clk
0:01:16.5]} 22... Nd2+ {[%clk 0:01:24.8]} 23. Kg1 {[%clk 0:01:16.2]} 23... Qxb4
{[%clk 0:01:08.7]} 24. Nxc6 {[%clk 0:00:57.8]} 24... bxc6 {[%clk 0:01:08.6]} 25.
Bxc6 {[%clk 0:00:58.7]} 25... Qxd4 {[%clk 0:01:04.8]} 26. c3 {[%clk 0:00:49.2]}
26... g6 {[%clk 0:00:44.4]} 27. Qb5 {[%clk 0:00:48.9]} 27... Qxg4+ {[%clk
0:00:29.4]} 28. Bg3 {[%clk 0:00:49.3]} 28... Bc5 {[%clk 0:00:20.6]} 29. Bxd7+
{[%clk 0:00:32.7]} 29... Kd8 {[%clk 0:00:20.8]} 30. Bxg4 {[%clk 0:00:31.4]} 1-0

[Event "Early-Titled-Tuesday-Blitz-February-13-2024"]
[Site "Chess.com"]
[Date "2024.02.13"]
[Round "5"]
[White "PLAYER_2006_M"]
[Black "rezamahdavi2008"]
[Result "1-0"]
[WhiteElo "3016"]
[BlackElo "2845"]
[TimeControl "180+1"]
[EndTime "8:59:09 PST"]
[Termination "PLAYER_2006_M won by resignation"]

1. e4 {[%clk 0:03:00.9]} 1... e5 {[%clk 0:02:50.1]} 2. Nf3 {[%clk 0:03:01.3]}
2... Nc6 {[%clk 0:02:49.6]} 3. Bb5 {[%clk 0:03:02]} 3... a6 {[%clk 0:02:49]} 4.
Ba4 {[%clk 0:03:02.3]} 4... d6 {[%clk 0:02:48.3]} 5. O-O {[%clk 0:03:01]} 5...
Bd7 {[%clk 0:02:46.2]} 6. c3 {[%clk 0:03:00.6]} 6... g5 {[%clk 0:02:45.7]} 7. d4
{[%clk 0:02:59.6]} 7... g4 {[%clk 0:02:44.9]} 8. Ne1 {[%clk 0:02:59.1]} 8... Bg7
{[%clk 0:02:34.6]} 9. d5 {[%clk 0:02:59]} 9... Nce7 {[%clk 0:02:28.4]} 10. Qxg4
{[%clk 0:02:40.7]} 10... Bxa4 {[%clk 0:02:21.9]} 11. Qxg7 {[%clk 0:02:38.5]}
11... Ng6 {[%clk 0:02:22.3]} 12. b3 {[%clk 0:02:24.4]} 12... Bd7 {[%clk
0:02:20.3]} 13. Nd3 {[%clk 0:02:23.6]} 13... Qh4 {[%clk 0:01:58.9]} 14. f4
{[%clk 0:02:15.3]} 14... N8e7 {[%clk 0:00:59.8]} 15. fxe5 {[%clk 0:01:24.2]}
15... O-O-O {[%clk 0:00:56.8]} 16. exd6 {[%clk 0:01:24.5]} 16... cxd6 {[%clk
0:00:49.1]} 17. Nd2 {[%clk 0:01:24.9]} 17... Rhg8 {[%clk 0:00:25]} 18. Qf6
{[%clk 0:01:24.9]} 18... Qh5 {[%clk 0:00:22.2]} 19. Nf3 {[%clk 0:01:18.9]} 19...
Bg4 {[%clk 0:00:14]} 20. Qg5 {[%clk 0:01:18.9]} 20... Bxf3 {[%clk 0:00:13.8]}
21. Rxf3 {[%clk 0:01:19.7]} 21... Qxf3 {[%clk 0:00:09.3]} 22. gxf3 {[%clk
0:01:18.8]} 22... Ne5 {[%clk 0:00:10.2]} 23. Nxe5 {[%clk 0:01:17.6]} 23... dxe5
{[%clk 0:00:11.1]} 24. Kf2 {[%clk 0:01:16.6]} 24... Rxg5 {[%clk 0:00:10.1]} 25.
Bxg5 {[%clk 0:01:17.5]} 25... Re8 {[%clk 0:00:10.2]} 26. Bxe7 {[%clk 0:01:16.6]}
26... Rxe7 {[%clk 0:00:11.1]} 27. c4 {[%clk 0:01:16.1]} 27... f6 {[%clk
0:00:08.8]} 28. c5 {[%clk 0:01:13.8]} 28... Kd7 {[%clk 0:00:09.2]} 29. Rg1
{[%clk 0:01:13.4]} 29... Rf7 {[%clk 0:00:07.6]} 30. Rg8 {[%clk 0:01:13.4]} 30...
Kc7 {[%clk 0:00:05.2]} 31. b4 {[%clk 0:01:11.3]} 31... Kd7 {[%clk 0:00:04.6]}
32. a4 {[%clk 0:01:11.4]} 32... Kc7 {[%clk 0:00:05.3]} 33. b5 {[%clk 0:01:11.9]}
33... axb5 {[%clk 0:00:06.2]} 34. axb5 {[%clk 0:01:12.8]} 34... Kd7 {[%clk
0:00:07.1]} 35. b6 {[%clk 0:01:12.5]} 35... h5 {[%clk 0:00:04.6]} 36. Rb8 {[%clk
0:01:13]} 1-0

[Event "Early-Titled-Tuesday-Blitz-February-13-2024"]
[Site "Chess.com"]
[Date "2024.02.13"]
[Round "5"]
[White "Ati1517"]
[Black "mariangie523"]
[Result "1-0"]
[WhiteElo "2243"]
[BlackElo "2088"]
[TimeControl "180+1"]
[EndTime "8:59:11 PST"]
[Termination "Ati1517 won on time"]

1. e4 {[%clk 0:02:55.6]} 1... c5 {[%clk 0:02:59]} 2. Nf3 {[%clk 0:02:54.9]} 2...
d6 {[%clk 0:02:55]} 3. d4 {[%clk 0:02:54.8]} 3... cxd4 {[%clk 0:02:54.4]} 4.
Nxd4 {[%clk 0:02:55.7]} 4... Nf6 {[%clk 0:02:53.9]} 5. Nc3 {[%clk 0:02:55.9]}
5... g6 {[%clk 0:02:53.4]} 6. Be3 {[%clk 0:02:52.6]} 6... Bg7 {[%clk 0:02:52.2]}
7. f3 {[%clk 0:02:51.3]} 7... O-O {[%clk 0:02:51.9]} 8. Qd2 {[%clk 0:02:51.2]}
8... Nc6 {[%clk 0:02:51.6]} 9. O-O-O {[%clk 0:02:50.6]} 9... d5 {[%clk
0:02:51.3]} 10. Nxc6 {[%clk 0:02:34.2]} 10... bxc6 {[%clk 0:02:09]} 11. Bd4
{[%clk 0:02:33.4]} 11... dxe4 {[%clk 0:01:08.1]} 12. fxe4 {[%clk 0:02:13.8]}
12... Bg4 {[%clk 0:00:51.5]} 13. Be2 {[%clk 0:02:02.5]} 13... Bxe2 {[%clk
0:00:50.7]} 14. Qxe2 {[%clk 0:02:03.4]} 14... Qa5 {[%clk 0:00:46.5]} 15. g4
{[%clk 0:01:53.4]} 15... Qg5+ {[%clk 0:00:31.3]} 16. Kb1 {[%clk 0:01:47.5]}
16... Qxg4 {[%clk 0:00:31.5]} 17. Qc4 {[%clk 0:01:37.1]} 17... Nxe4 {[%clk
0:00:19.2]} 18. Bxg7 {[%clk 0:01:31]} 18... Nxc3+ {[%clk 0:00:18.3]} 19. Qxc3
{[%clk 0:01:29.8]} 19... Rfd8 {[%clk 0:00:14]} 20. Rd3 {[%clk 0:00:58.4]} 20...
Rxd3 {[%clk 0:00:07.5]} 21. cxd3 {[%clk 0:00:53.5]} 21... f6 {[%clk 0:00:04.8]}
22. Bh6 {[%clk 0:00:44.2]} 22... g5 {[%clk 0:00:03.3]} 23. h4 {[%clk 0:00:38.8]}
23... Qh5 {[%clk 0:00:01.7]} 24. Qxc6 {[%clk 0:00:33.6]} 1-0

[Event "Early-Titled-Tuesday-Blitz-February-13-2024"]
[Site "Chess.com"]
[Date "2024.02.13"]
[Round "5"]
[White "VeraVujovic"]
[Black "gxbg2000"]
[Result "1-0"]
[WhiteElo "2241"]
[BlackElo "2067"]
[TimeControl "180+1"]
[EndTime "8:59:12 PST"]
[Termination "VeraVujovic won by resignation"]

1. e4 {[%clk 0:02:43.7]} 1... e6 {[%clk 0:02:59.7]} 2. d4 {[%clk 0:02:42.3]}
2... d5 {[%clk 0:02:59.7]} 3. exd5 {[%clk 0:02:43]} 3... exd5 {[%clk 0:02:59.6]}
4. Nc3 {[%clk 0:02:43.6]} 4... Be6 {[%clk 0:03:00.5]} 5. Bd3 {[%clk 0:02:42.8]}
5... g6 {[%clk 0:02:59.9]} 6. Nge2 {[%clk 0:02:42.3]} 6... Bg7 {[%clk
0:03:00.1]} 7. O-O {[%clk 0:02:43]} 7... Ne7 {[%clk 0:03:01]} 8. Re1 {[%clk
0:02:29.8]} 8... O-O {[%clk 0:03:01.9]} 9. Bf4 {[%clk 0:02:28.6]} 9... c6 {[%clk
0:02:59.9]} 10. Qd2 {[%clk 0:02:18.2]} 10... Re8 {[%clk 0:02:58.1]} 11. Rad1
{[%clk 0:02:17.4]} 11... Nd7 {[%clk 0:02:57.2]} 12. Bh6 {[%clk 0:02:17]} 12...
Bh8 {[%clk 0:02:55]} 13. Bg5 {[%clk 0:02:12]} 13... Qc7 {[%clk 0:02:52.1]} 14.
Nf4 {[%clk 0:02:10.6]} 14... Nf5 {[%clk 0:02:37.3]} 15. Nxe6 {[%clk 0:02:04.7]}
15... Rxe6 {[%clk 0:02:36.4]} 16. Bxf5 {[%clk 0:02:03.3]} 16... Rxe1+ {[%clk
0:02:33.7]} 17. Rxe1 {[%clk 0:02:04.2]} 17... gxf5 {[%clk 0:02:33.9]} 18. Bh6
{[%clk 0:01:53.9]} 18... Qd6 {[%clk 0:02:31.9]} 19. Re3 {[%clk 0:01:44.7]} 19...
Nf8 {[%clk 0:02:26.2]} 20. Bf4 {[%clk 0:01:30.2]} 20... Qb4 {[%clk 0:02:19.4]}
21. Rg3+ {[%clk 0:00:57.9]} 21... Ng6 {[%clk 0:02:18.9]} 22. Nxd5 {[%clk
0:00:54.2]} 22... Qxd2 {[%clk 0:02:10.2]} 23. Ne7+ {[%clk 0:00:53.1]} 23... Kg7
{[%clk 0:02:07]} 24. Bxd2 {[%clk 0:00:50.7]} 24... Kf6 {[%clk 0:02:01.6]} 25.
Bg5+ {[%clk 0:00:47.4]} 25... Ke6 {[%clk 0:01:56.7]} 26. Re3+ {[%clk 0:00:46]}
26... Kd7 {[%clk 0:01:56.5]} 27. Nxf5 {[%clk 0:00:44.5]} 27... f6 {[%clk
0:01:55.4]} 28. Bh4 {[%clk 0:00:41.5]} 28... Nxh4 {[%clk 0:01:49.7]} 29. Re7+
{[%clk 0:00:21.2]} 29... Kd8 {[%clk 0:01:48.8]} 30. Rxh7 {[%clk 0:00:20.6]}
30... Ng6 {[%clk 0:01:37.4]} 31. Nh4 {[%clk 0:00:20.7]} 31... Nxh4 {[%clk
0:01:32.2]} 32. Rxh8+ {[%clk 0:00:20.8]} 32... Kc7 {[%clk 0:01:31.6]} 33. Rxa8
{[%clk 0:00:21.1]} 33... Nf5 {[%clk 0:01:30.5]} 34. c3 {[%clk 0:00:19.8]} 34...
a6 {[%clk 0:01:27.4]} 35. Rf8 {[%clk 0:00:17.1]} 35... Nd6 {[%clk 0:01:19.3]}
36. Rxf6 {[%clk 0:00:15.6]} 36... Ne4 {[%clk 0:01:18.2]} 37. Rf7+ {[%clk
0:00:11]} 37... Kc8 {[%clk 0:01:17.3]} 38. h4 {[%clk 0:00:10.6]} 38... b5 {[%clk
0:01:16.6]} 39. h5 {[%clk 0:00:10.2]} 39... a5 {[%clk 0:01:15.8]} 40. h6 {[%clk
0:00:10.5]} 40... Ng5 {[%clk 0:01:15.8]} 41. Rg7 {[%clk 0:00:10.6]} 41... Ne6
{[%clk 0:01:15.2]} 42. Rg8+ {[%clk 0:00:11]} 42... Kd7 {[%clk 0:01:14.5]} 43. h7
{[%clk 0:00:11.9]} 1-0

[Event "Early-Titled-Tuesday-Blitz-February-13-2024"]
[Site "Chess.com"]
[Date "2024.02.13"]
[Round "5"]
[White "faraone99"]
[Black "DAVIDHDZSTS"]
[Result "1-0"]
[WhiteElo "2536"]
[BlackElo "1910"]
[TimeControl "180+1"]
[EndTime "8:59:14 PST"]
[Termination "faraone99 won on time"]

1. e4 {[%clk 0:01:11]} 1... c5 {[%clk 0:02:56.8]} 2. Nf3 {[%clk 0:01:09]} 2...
e6 {[%clk 0:02:56.9]} 3. c4 {[%clk 0:01:08.5]} 3... Nf6 {[%clk 0:02:53.6]} 4.
Nc3 {[%clk 0:01:08.1]} 4... d6 {[%clk 0:02:49.4]} 5. d4 {[%clk 0:01:08.1]} 5...
cxd4 {[%clk 0:02:49.4]} 6. Nxd4 {[%clk 0:01:09]} 6... Qc7 {[%clk 0:02:47.7]} 7.
Be3 {[%clk 0:01:08]} 7... Nbd7 {[%clk 0:02:39.5]} 8. Be2 {[%clk 0:01:07.9]} 8...
b6 {[%clk 0:02:39.1]} 9. O-O {[%clk 0:01:08.2]} 9... a6 {[%clk 0:02:39.3]} 10.
f3 {[%clk 0:01:08.9]} 10... Bb7 {[%clk 0:02:39.1]} 11. Rc1 {[%clk 0:01:09.6]}
11... Nc5 {[%clk 0:02:38.9]} 12. b4 {[%clk 0:01:09.2]} 12... Ncd7 {[%clk
0:02:38.3]} 13. Nd5 {[%clk 0:00:48.1]} 13... exd5 {[%clk 0:02:35.9]} 14. cxd5
{[%clk 0:00:49]} 14... Qd8 {[%clk 0:02:36.1]} 15. Nc6 {[%clk 0:00:48.4]} 15...
Bxc6 {[%clk 0:02:36.3]} 16. dxc6 {[%clk 0:00:49.3]} 16... Ne5 {[%clk 0:02:34.7]}
17. f4 {[%clk 0:00:47.8]} 17... Ng6 {[%clk 0:02:33.9]} 18. c7 {[%clk 0:00:40.4]}
18... Qc8 {[%clk 0:02:32.5]} 19. Qa4+ {[%clk 0:00:36.5]} 19... Nd7 {[%clk
0:02:31.6]} 20. Bb5 {[%clk 0:00:29.2]} 20... Be7 {[%clk 0:02:29.2]} 21. Bxd7+
{[%clk 0:00:28.3]} 21... Qxd7 {[%clk 0:02:29.7]} 22. c8=Q+ {[%clk 0:00:28.5]}
1-0

[Event "Early-Titled-Tuesday-Blitz-February-13-2024"]
[Site "Chess.com"]
[Date "2024.02.13"]
[Round "5"]
[White "Sychev_Klementy"]
[Black "jefferyx"]
[Result "0-1"]
[WhiteElo "2908"]
[BlackElo "3024"]
[TimeControl "180+1"]
[EndTime "8:59:16 PST"]
[Termination "jefferyx won on time"]

1. e4 {[%clk 0:03:00.9]} 1... c5 {[%clk 0:02:59.9]} 2. Nf3 {[%clk 0:03:00.7]}
2... d6 {[%clk 0:03:00.5]} 3. d4 {[%clk 0:03:00.7]} 3... cxd4 {[%clk 0:03:01.4]}
4. Nxd4 {[%clk 0:03:01.2]} 4... Nf6 {[%clk 0:03:01.8]} 5. Nc3 {[%clk 0:03:01.7]}
5... a6 {[%clk 0:03:02.3]} 6. Bg5 {[%clk 0:03:02]} 6... e6 {[%clk 0:03:00.7]} 7.
f4 {[%clk 0:02:59.3]} 7... h6 {[%clk 0:03:00.9]} 8. Bh4 {[%clk 0:02:58.7]} 8...
Qb6 {[%clk 0:03:00.2]} 9. Qd2 {[%clk 0:02:53.2]} 9... Qxb2 {[%clk 0:02:55.1]}
10. Rb1 {[%clk 0:02:52.8]} 10... Qa3 {[%clk 0:02:55.4]} 11. Be2 {[%clk
0:02:50.4]} 11... Nc6 {[%clk 0:02:48.5]} 12. Nxc6 {[%clk 0:02:47.9]} 12... bxc6
{[%clk 0:02:48.6]} 13. e5 {[%clk 0:02:48.5]} 13... Nd7 {[%clk 0:02:21.6]} 14.
Ne4 {[%clk 0:01:33.4]} 14... d5 {[%clk 0:02:08.5]} 15. Rb3 {[%clk 0:01:26.6]}
15... Qxa2 {[%clk 0:01:50.7]} 16. Nd6+ {[%clk 0:00:57.7]} 16... Bxd6 {[%clk
0:01:50.7]} 17. exd6 {[%clk 0:00:58]} 17... Nc5 {[%clk 0:01:42.7]} 18. Qc3
{[%clk 0:00:45]} 18... Nxb3 {[%clk 0:01:12.6]} 19. Qxc6+ {[%clk 0:00:44.1]}
19... Kf8 {[%clk 0:01:13.2]} 20. cxb3 {[%clk 0:00:29]} 20... Qa5+ {[%clk
0:01:11.6]} 21. Kf2 {[%clk 0:00:16.7]} 21... Rb8 {[%clk 0:01:11.9]} 22. d7
{[%clk 0:00:15]} 22... Bxd7 {[%clk 0:01:11.9]} 23. Qd6+ {[%clk 0:00:14.8]} 23...
Kg8 {[%clk 0:01:11.5]} 24. Qxb8+ {[%clk 0:00:15.1]} 24... Kh7 {[%clk 0:01:11.9]}
25. Qb7 {[%clk 0:00:09.9]} 25... Bb5 {[%clk 0:01:11.1]} 26. Bxb5 {[%clk
0:00:07.4]} 26... Qd2+ {[%clk 0:01:10.6]} 27. Be2 {[%clk 0:00:06.6]} 27... Qxf4+
{[%clk 0:01:10.8]} 28. Bf3 {[%clk 0:00:06.1]} 28... Qxh4+ {[%clk 0:01:10.8]} 29.
Ke2 {[%clk 0:00:06]} 29... Qf4 {[%clk 0:00:59]} 30. Rd1 {[%clk 0:00:03.9]} 30...
Rb8 {[%clk 0:00:57.6]} 31. Qxa6 {[%clk 0:00:02.1]} 31... Rxb3 {[%clk 0:00:57.8]}
32. Qa2 {[%clk 0:00:02.1]} 32... Qc4+ {[%clk 0:00:46.4]} 33. Ke1 {[%clk
0:00:01.9]} 33... Re3+ {[%clk 0:00:46.2]} 34. Be2 {[%clk 0:00:01.2]} 34... Qxa2
{[%clk 0:00:46.1]} 0-1

[Event "Early-Titled-Tuesday-Blitz-February-13-2024"]
[Site "Chess.com"]
[Date "2024.02.13"]
[Round "5"]
[White "ClaudiaSof"]
[Black "sotochess"]
[Result "0-1"]
[WhiteElo "2315"]
[BlackElo "2547"]
[TimeControl "180+1"]
[EndTime "8:59:16 PST"]
[Termination "sotochess won by resignation"]

1. e4 {[%clk 0:03:00.9]} 1... d5 {[%clk 0:02:56.6]} 2. exd5 {[%clk 0:03:00.2]}
2... Qxd5 {[%clk 0:02:55.2]} 3. Nc3 {[%clk 0:02:59.8]} 3... Qa5 {[%clk
0:02:42.5]} 4. Bc4 {[%clk 0:02:59]} 4... Nf6 {[%clk 0:02:38.6]} 5. d3 {[%clk
0:02:57.9]} 5... c6 {[%clk 0:02:37.8]} 6. Bd2 {[%clk 0:02:53]} 6... Qb6 {[%clk
0:02:34.4]} 7. f4 {[%clk 0:02:40.3]} 7... Qxb2 {[%clk 0:02:26.9]} 8. Nf3 {[%clk
0:02:33.2]} 8... Qb6 {[%clk 0:02:26.4]} 9. Ne5 {[%clk 0:02:27.8]} 9... e6 {[%clk
0:02:26]} 10. Rb1 {[%clk 0:02:24.8]} 10... Qc7 {[%clk 0:02:21.8]} 11. Qe2 {[%clk
0:02:23.6]} 11... Bd6 {[%clk 0:02:20.5]} 12. O-O {[%clk 0:02:20.2]} 12... O-O
{[%clk 0:02:19.6]} 13. Rf3 {[%clk 0:02:04]} 13... Re8 {[%clk 0:02:18.8]} 14. Rg3
{[%clk 0:01:55.1]} 14... Nbd7 {[%clk 0:02:16.6]} 15. Re1 {[%clk 0:01:53.8]}
15... b5 {[%clk 0:02:01.7]} 16. Bb3 {[%clk 0:01:52.2]} 16... a5 {[%clk
0:02:00.6]} 17. a4 {[%clk 0:01:42.6]} 17... b4 {[%clk 0:01:58.8]} 18. Ne4 {[%clk
0:01:40.5]} 18... Bxe5 {[%clk 0:01:53.3]} 19. fxe5 {[%clk 0:01:39.1]} 19... Qxe5
{[%clk 0:01:53.4]} 20. Nxf6+ {[%clk 0:01:29.1]} 20... Qxf6 {[%clk 0:01:53.1]}
21. Rf1 {[%clk 0:01:21.9]} 21... Qe7 {[%clk 0:01:48.3]} 22. Bg5 {[%clk
0:01:17.6]} 22... Qc5+ {[%clk 0:01:40.1]} 23. Be3 {[%clk 0:01:16.6]} 23... Qe5
{[%clk 0:01:32]} 24. Qf2 {[%clk 0:01:12.7]} 24... f6 {[%clk 0:01:07.2]} 25. Bd4
{[%clk 0:01:07.1]} 25... Qd6 {[%clk 0:01:00.8]} 26. Bxf6 {[%clk 0:01:05]} 26...
g6 {[%clk 0:01:00.2]} 27. Bb2 {[%clk 0:00:40.4]} 27... Rf8 {[%clk 0:00:58.9]}
28. Rf3 {[%clk 0:00:40.6]} 28... Rxf3 {[%clk 0:00:56.8]} 29. Qxf3 {[%clk
0:00:39.2]} 29... Qe7 {[%clk 0:00:55.3]} 30. Qxc6 {[%clk 0:00:34.5]} 30... Qc5+
{[%clk 0:00:55.1]} 31. Qxc5 {[%clk 0:00:33.8]} 31... Nxc5 {[%clk 0:00:55.2]} 32.
Be5 {[%clk 0:00:26.9]} 32... Bd7 {[%clk 0:00:54.2]} 33. Bd6 {[%clk 0:00:22.9]}
33... Nxa4 {[%clk 0:00:53.9]} 34. Ra1 {[%clk 0:00:22.7]} 34... Nb6 {[%clk
0:00:52.3]} 35. Bc7 {[%clk 0:00:20.7]} 35... Nd5 {[%clk 0:00:45.9]} 36. Rxa5
{[%clk 0:00:20.3]} 36... Nxc7 {[%clk 0:00:45]} 0-1

[Event "Early-Titled-Tuesday-Blitz-February-13-2024"]
[Site "Chess.com"]
[Date "2024.02.13"]
[Round "5"]
[White "Radzio1987"]
[Black "jk13"]
[Result "1-0"]
[WhiteElo "2905"]
[BlackElo "2662"]
[TimeControl "180+1"]
[EndTime "8:59:17 PST"]
[Termination "Radzio1987 won by resignation"]

1. c4 {[%clk 0:03:00.9]} 1... e6 {[%clk 0:02:59.8]} 2. g3 {[%clk 0:02:58.6]}
2... Nf6 {[%clk 0:02:59.8]} 3. Bg2 {[%clk 0:02:58.7]} 3... d5 {[%clk 0:03:00.5]}
4. Nf3 {[%clk 0:02:57.1]} 4... dxc4 {[%clk 0:03:00.7]} 5. Qa4+ {[%clk
0:02:56.7]} 5... c6 {[%clk 0:03:01.1]} 6. Qxc4 {[%clk 0:02:56.3]} 6... b5 {[%clk
0:03:02]} 7. Qb3 {[%clk 0:02:55.3]} 7... Bb7 {[%clk 0:03:02.9]} 8. d4 {[%clk
0:02:54.7]} 8... Nbd7 {[%clk 0:03:02.7]} 9. Ne5 {[%clk 0:02:54.2]} 9... Nxe5
{[%clk 0:02:57.3]} 10. dxe5 {[%clk 0:02:55.1]} 10... Nd7 {[%clk 0:02:57.8]} 11.
Bf4 {[%clk 0:02:47.6]} 11... Qb6 {[%clk 0:02:49.8]} 12. Nc3 {[%clk 0:02:45.4]}
12... a6 {[%clk 0:02:48]} 13. O-O {[%clk 0:02:29.2]} 13... Be7 {[%clk
0:02:43.9]} 14. Rfd1 {[%clk 0:02:21.2]} 14... Rd8 {[%clk 0:02:39]} 15. Ne4
{[%clk 0:02:17.9]} 15... O-O {[%clk 0:02:18.7]} 16. Nd6 {[%clk 0:02:03.3]} 16...
Ba8 {[%clk 0:02:13.6]} 17. Qf3 {[%clk 0:01:44]} 17... c5 {[%clk 0:02:02.9]} 18.
Qg4 {[%clk 0:01:43.6]} 18... Bxg2 {[%clk 0:02:03]} 19. Kxg2 {[%clk 0:01:30.2]}
19... Qc6+ {[%clk 0:01:45.3]} 20. Kg1 {[%clk 0:01:30]} 20... Kh8 {[%clk
0:01:24.4]} 21. Rd2 {[%clk 0:01:30.2]} 21... Nb6 {[%clk 0:01:14.7]} 22. Rad1
{[%clk 0:01:29.4]} 22... Nd5 {[%clk 0:01:09.1]} 23. Bg5 {[%clk 0:01:23.6]} 23...
Bxg5 {[%clk 0:00:54]} 24. Qxg5 {[%clk 0:01:24.5]} 24... f6 {[%clk 0:00:54.6]}
25. Qh4 {[%clk 0:01:15.9]} 25... Kg8 {[%clk 0:00:45.3]} 26. e4 {[%clk
0:01:14.4]} 26... Ne7 {[%clk 0:00:39]} 27. exf6 {[%clk 0:01:07.4]} 27... Rxf6
{[%clk 0:00:24.3]} 28. e5 {[%clk 0:01:07.2]} 28... Ng6 {[%clk 0:00:23.3]} 29.
Qe4 {[%clk 0:00:50.7]} 29... Qxe4 {[%clk 0:00:11.5]} 30. Nxe4 {[%clk 0:00:51.6]}
30... Rxd2 {[%clk 0:00:11.8]} 31. Nxf6+ {[%clk 0:00:51.4]} 31... gxf6 {[%clk
0:00:11.6]} 32. Rxd2 {[%clk 0:00:52]} 32... Nxe5 {[%clk 0:00:11.3]} 33. Rd6
{[%clk 0:00:51.7]} 33... Kf7 {[%clk 0:00:10]} 34. Rxa6 {[%clk 0:00:51]} 34...
Nd3 {[%clk 0:00:09.7]} 35. b3 {[%clk 0:00:50.3]} 35... b4 {[%clk 0:00:09.8]} 36.
Kf1 {[%clk 0:00:48.1]} 36... f5 {[%clk 0:00:10.1]} 37. Ke2 {[%clk 0:00:48.2]}
37... Ne5 {[%clk 0:00:10.2]} 38. Ra7+ {[%clk 0:00:46.6]} 38... Kg6 {[%clk
0:00:10.2]} 39. Rc7 {[%clk 0:00:46.6]} 1-0